Cogmind - Beta 15 @@@ ROGUE MODE // 2025.06.08 @ 09:24:46 Player: Bjolfur Result: Destroyed by ZF-XA6(R) with Subdweller Laser Performance ------------- Evolutions (0) 0 Regions Visited (2) 400 Robots Destroyed (25) 125 Value Destroyed (643) 643 Prototype IDs (5) 100 Alien Tech Used (0) 0 Bonus (0) 0 TOTAL SCORE: 1268 Bonus ------- None Cogmind --------- Core Integrity 0/250 Matter 215/300 Energy 125/125 System Corruption 0% Temperature Cool (6) Movement Treading (240) Ox1 Location -10/Subcaves Parts ------- > --- POWER (1) -------- Light Ion Engine > --- PROPULSION (2) --- Improved Treads > --- UTILITY (2) ------ Large Storage Unit Light Armor Plating > --- WEAPON (2) ------- Battle Cannon Grenade Launcher > --- INVENTORY (15) --- Light Ion Engine Light Nuclear Core Improved Treads Improved Treads Subdweller Optics Sensor Array Signal Interpreter Scrap Shield Light EM Pulse Cannon Light EM Pulse Cannon Heavy Assault Rifle Heavy Assault Rifle Heavy Assault Rifle Mining Laser Peak State ------------ > --- POWER ------------ Light Ion Engine > --- PROPULSION ------- Improved Treads Improved Treads > --- UTILITY ---------- Large Storage Unit Light Armor Plating > --- WEAPON ----------- Light EM Pulse Cannon Heavy Assault Rifle > --- INVENTORY -------- Light Ion Engine Light Ion Engine Light Nuclear Core Improved Treads Improved Treads Sensor Array Signal Interpreter Seismic Detector Light Armor Plating Light EM Pulse Cannon Heavy Assault Rifle Heavy Assault Rifle Heavy Assault Rifle Mining Laser [Rating: 13] Favorites ----------- Power Light Ion Engine Engine Light Ion Engine Propulsion Improved Treads Treads Improved Treads Leg Aluminum Leg Utility Large Storage Unit Device Seismic Detector Storage Large Storage Unit Protection Light Armor Plating Weapon Heavy Assault Rifle Energy Gun EM Pulse Gun Energy Cannon Light EM Pulse Cannon Ballistic Gun Heavy Assault Rifle Ballistic Cannon Battle Cannon Launcher Grenade Launcher Special Weapon Mining Laser Build | -11 -10 -10 ------- Run | Yrd Mat Sub Slots Evolved . | . . . Power . | . . . Propulsion . | . . . Utility . | . . . Weapon . | . . . Parts Attached 22 | 6 11 5 Power 2 | . 2 . Engine 2 | . 2 . Core . | . . . Reactor . | . . . Propulsion 5 | 2 2 1 Treads 3 | . 2 1 Leg 2 | 2 . . Wheel . | . . . Hover . | . . . Flight . | . . . Utility 5 | 2 2 1 Device 1 | 1 . . Storage 2 | 1 1 . Processor . | . . . Hackware . | . . . Protection 2 | . 1 1 Artifact . | . . . Weapon 10 | 2 5 3 Energy Gun 1 | 1 . . Energy Cannon 1 | . 1 . Ballistic Gun 4 | 1 3 . Ballistic Cannon 2 | . . 2 Launcher 1 | . . 1 Special Weapon 1 | . 1 . Impact Weapon . | . . . Slashing Weapon . | . . . Piercing Weapon . | . . . Special Melee Weapon . | . . . Unidentified Prototypes . | . . . Parts Lost 4 | . 1 3 Power . | . . . Propulsion 1 | . . 1 Utility 1 | . . 1 Weapon 2 | . 1 1 Highest Loss Streak 1 | . 1 1 To Critical Strikes 1 | . . 1 Average Backups 10 | 3 9 14 Power 1 | 1 1 2 Propulsion 1 | 1 2 2 Utility 2 | . 2 4 Weapon 3 | . 3 6 Tool/Special . | . . . Unused Backups 17 | . 5 12 Power 3 | . 1 2 Propulsion 5 | . 3 2 Utility 6 | . 1 5 Weapon 3 | . . 3 Tool/Special . | . . . Average Slot Usage (%) 95 | . 93 99 Engine 10 | . 8 14 Treads 19 | . 15 27 Leg 8 | . 12 . Device 5 | . 9 . Storage 14 | . 14 14 Protection 8 | . 4 14 Energy Gun 1 | . 2 . Energy Cannon 6 | . 4 9 Ballistic Gun 14 | . 20 3 Ballistic Cannon 3 | . . 9 Launcher 1 | . . 4 Peak Build Rating 13 | 6 13 13 Average Rating 10 | 4 9 12 On Entrance 6 | . 6 13 Naked Turns . | . . . Heaviest Build 33 | 9 33 33 Greatest Support 46 | 20 46 46 Greatest Overweight (x) 4 | . 4 . Average Overweight (x) . | . . . Largest Inventory Capacity 15 | 8 15 15 Average Capacity 12 | 7 11 15 Most Carried 15 | 5 15 15 Average Carried 11 | 3 9 14 Final Capacity 15 | 8 15 15 Final Carried 15 | 4 15 15 Class Distribution -------------------- 100% | Mutant Dominant Class ---------------- Mutant | -10/Materials Mutant | -10/Subcaves Resources | -11 -10 -10 ----------- Run | Yrd Mat Sub Matter Collected 707 | 264 273 170 Remotely . | . . . Salvage Created 690 | 43 502 145 Parts 57 | 5 42 10 Haulers Intercepted 1 | . 1 . Recyclers Shooed 2 | . 2 . Parts Field Recycled . | . . . Retrieved Matter . | . . . Parts Self-Destructed 4 | . . 4 Prevented . | . . . Kills | -11 -10 -10 ------- Run | Yrd Mat Sub Combat Hostiles Destroyed 20 | . 14 6 Guns 12 | . 12 . Cannons 4 | . 2 2 AOE 4 | . . 4 Classes Destroyed 7 | 1 5 1 Tunneler 2 | 2 . . Hauler 1 | . 1 . Operator 1 | . 1 . Watcher 1 | . 1 . Swarmer 6 | . 6 . Grunt 8 | . 8 . Subdweller 6 | . . 6 Best Kill Streak 4 | 2 4 2 Combat Bots Only 3 | . 3 2 Max Kills in Single Turn 1 | 1 1 1 Gunslinging . | . . . Exploded 1 | . . 1 Melee . | . . . Uniques/NPCs Destroyed . | . . . Combat | -11 -10 -10 -------- Run | Yrd Mat Sub Hostile Shots Fired 82 | . 52 30 Missed 20 | . 13 7 Hits 62 | . 39 23 Projectile 62 | . 39 23 Critical Strikes 1 | . . 1 Damage Taken 1072 | . 393 679 Core 251 | . 94 157 Absorbed by Shields . | . . . Regen/Repaired (Parts) 15 | . 15 . Core Remaining (%) 100 | 100 . . Volleys Fired 80 | 4 54 22 Largest 2 | 2 2 2 Hottest 100 | 60 100 63 Shots Fired 130 | 8 94 28 Gun 88 | 8 80 . Cannon 25 | . 13 12 Launcher 16 | . . 16 Special 1 | . 1 . Kinetic 90 | 4 74 12 Thermal 1 | . 1 . Explosive 16 | . . 16 Electromagnetic 23 | 4 19 . Robot Hit Streak 25 | 1 10 25 Robot Miss Streak 3 | 2 3 1 Penetration Max . | . . . Secondary Targets 1 | . 1 . Max Gunslinging Chain 1 | . 1 . Shots Hit Robots 87 | 3 59 25 Core Hits 36 | 2 24 10 Critical Kills 1 | . 1 . Critical Parts Destroyed . | . . . Critical Strikes 2 | . 1 1 Destroy 1 | . 1 . Blast 1 | . . 1 Melee Attacks . | . . . Impact . | . . . Slashing . | . . . Piercing . | . . . Sneak Attacks . | . . . Combat Hostiles . | . . . Follow-up Attacks . | . . . Damage Inflicted 1954 | 63 735 1156 Guns 629 | 41 588 . Cannons 371 | . 138 233 Explosions 945 | 22 . 923 Melee . | . . . Ramming 9 | . 9 . Kinetic 809 | 26 550 233 Thermal 22 | 22 . . Explosive 923 | . . 923 Electromagnetic 191 | 15 176 . Impact . | . . . Slashing . | . . . Piercing . | . . . Highest Corruption . | . . . Average Corruption . | . . . Corruption Purged . | . . . Corruption Blocked . | . . . Overload Shots . | . . . Overflow Damage . | . . . Projectiles . | . . . Explosions . | . . . Melee . | . . . Knockbacks 3 | . . 3 Impact . | . . . Kinetic 3 | . . 3 Secondary . | . . . Self-Inflicted Damage 134 | . . 134 Shots 7 | . . 7 Rammed 1 | . 1 . Targets Rammed 1 | . 1 . Kicked . | . . . Crushed . | . . . Highest Temperature 81 | 10 81 . Average Temperature 25 | 7 27 . Received Heat Transfer 255 | . 144 111 Siege Activations . | . . . Martial Activations . | . . . Shielding Activations . | . . . Robots Disrupted . | . . . Combat Hostiles . | . . . Robots Corrupted . | . . . Combat Hostiles . | . . . Parts Fried . | . . . Impact Corruptions . | . . . Robots Melted . | . . . Combat Hostiles . | . . . Parts Melted . | . . . Heat Transferred 50 | 50 . . Parts Sabotaged . | . . . Parts Stolen . | . . . Parts Stripped . | . . . Power Chain Reactions 1 | 1 . . Alert | -11 -10 -10 ------- Run | Yrd Mat Sub Maximum Alert Level . | . . . Low Security (%) 100 | 100 100 . Level 1 . | . . . Level 2 . | . . . Level 3 . | . . . Level 4 . | . . . Level 5 . | . . . High Security . | . . . Max Security . | . . . Peak Influence 139 | 5 139 . Initial . | . . . Average 39 | 1 42 . Influence Increases 389 | 10 379 . Destroy 0b10 Robot/C 280 | . 280 . Destroy 0b10 Robot/NC 25 | 10 15 . Destroy Leader 64 | . 64 . Successful Hack 5 | . 5 . Disable Machine 15 | . 15 . Influence Decreases 389 | 10 280 99 Entered New Map 48 | . . 48 Time Decay 331 | 10 270 51 Lost Part 10 | . 10 . Squads Dispatched 4 | . 4 . Investigation 2 | . 2 . Extermination . | . . . Reinforcement 2 | . 2 . Assault . | . . . Garrison . | . . . Intercept . | . . . Searches Triggered . | . . . Construction Impeded . | . . . Haulers Reinforced . | . . . Active Scanning Responses . | . . . Cargo Convoy Interrupts . | . . . Stealth | -11 -10 -10 --------- Run | Yrd Mat Sub Distress Signals 4 | . 4 . Communications Jammed . | . . . Distress Signals . | . . . Times Spotted 38 | . 30 8 Peak Tracking Total 4 | . 4 2 Tactical Retreats . | . . . Traps | -11 -10 -10 ------- Run | Yrd Mat Sub Traps Triggered 2 | . 1 1 Indirectly . | . . . Trap Hack Attempts . | . . . Triggered . | . . . Disarmed . | . . . Reprogrammed . | . . . Reused . | . . . Traps Extracted . | . . . Installed . | . . . Triggered . | . . . Machines | -11 -10 -10 ---------- Run | Yrd Mat Sub Machines Disabled 4 | . 1 3 Max in Single Turn 1 | . 1 1 Machines Repaired . | . . . Machines Dismantled . | . . . Machines Sabotaged . | . . . Overloaded Fab Kills . | . . . Hacking | -11 -10 -10 --------- Run | Yrd Mat Sub Machines Accessed 6 | . 5 1 Terminals 3 | . 3 . Fabricators . | . . . Repair Stations 1 | . 1 . Recycling Units 1 | . 1 . Scanalyzers . | . . . Garrison Access . | . . . Total Hacks 22 | . 17 5 Successful 14 | . 9 5 Failed 7 | . 7 . Catastrophic . | . . . Database Lockouts 1 | . 1 . Manual 8 | . 8 . Terminals 13 | . 13 . Fabricators . | . . . Repair Stations 2 | . 2 . Recycling Units 2 | . 2 . Scanalyzers . | . . . Garrison Access . | . . . Terminal Hacks 11 | . 6 5 Record 5 | . . 5 Robot Analysis 1 | . 1 . Prototype ID Bank 3 | . 3 . Transport Status 1 | . 1 . Hauler Manifests 1 | . 1 . Fabricator Hacks . | . . . Repair Station Hacks 2 | . 2 . Scan Component 1 | . 1 . Repair 1 | . 1 . Recycling Unit Hacks 1 | . 1 . Report Inventory 1 | . 1 . Scanalyzer . | . . . Garrison Access Hacks . | . . . Unauthorized Hacks . | . . . Terminals . | . . . Fabricators . | . . . Repair Stations . | . . . Recycling Units . | . . . Scanalyzers . | . . . Garrison Access . | . . . Data Cores Recovered . | . . . Used . | . . . Hacking Detections 3 | . 3 . Full Trace Events . | . . . Feedback Events . | . . . Feedback Blocked . | . . . Robot Schematics Acquired . | . . . Robots Built . | . . . Authchips . | . . . Time . | . . . Total Robot Build Rating . | . . . Part Schematics Acquired . | . . . Parts Built . | . . . Authchips . | . . . Time . | . . . Total Part Build Rating . | . . . Parts Repaired 1 | . 1 . Time 26 | . 26 . Parts Recycled . | . . . Recycled Matter . | . . . Retrieved Matter . | . . . Retrieved Components . | . . . Parts Scanalyzed . | . . . Part Schematics Acquired . | . . . Parts Damaged . | . . . Bothacking | -11 -10 -10 ------------ Run | Yrd Mat Sub Used RIF Installer . | . . . Robots Hacked . | . . . Non-combat . | . . . Combat . | . . . Robot Hacks Applied . | . . . Relay Couplers Released . | . . . Fabnet Peak Effective % . | . . . Robots Rewired . | . . . Allies Hacked . | . . . Hacks Repelled . | . . . Allies | -11 -10 -10 -------- Run | Yrd Mat Sub Total Allies . | . . . Largest Group . | . . . Highest-Rated Group . | . . . Highest-Rated Ally . | . . . Total Orders . | . . . Ally Attacks . | . . . Total Damage . | . . . Kills . | . . . Allies Corrupted . | . . . Allies Melted . | . . . Intel | -11 -10 -10 ------- Run | Yrd Mat Sub Active Infowar (turns) 808 | 19 789 . Seismic 808 | 19 789 . Robot Analysis Total 1 | . 1 . Derelict Logs Recovered . | . . . Drone Launches . | . . . Drone Recoveries . | . . . Exploration | -11 -10 -10 ------------- Run | Yrd Mat Sub Turns Passed 1972 | 109 1193 670 Spaces Moved 1103 | 73 650 380 Core 12 | 11 1 . Treads 697 | . 317 380 Legs 394 | 62 332 . Wheels . | . . . Hover . | . . . Flight . | . . . Fastest Speed 50 | 50 120 160 Average Speed 144 | 109 139 160 Slowest Speed 250 | 120 250 160 Overloaded Moves . | . . . Propulsion Burnouts . | . . . Robots Hopped . | . . . Potential Cave-ins . | . . . Cave-ins Triggered . | . . . Exploration Rate (%) 42 | 4 90 33 Regions Visited 2 Branch Regions 1 Pre-discovered Areas 1 | . . 1 Known Exits Taken . | . . . Unknown Exits Taken 2 | 1 1 . Scrap Searched 6 | . . 6 Spaces Dug . | . . . Terrain Destroyed 37 | 3 . 34 Melee . | . . . Projectile . | . . . AOE 37 | 3 . 34 Terrain Rammed . | . . . Walls Destroyed . | . . . Machines Disabled . | . . . Actions | -11 -10 -10 --------- Run | Yrd Mat Sub Total 1356 | 93 848 415 Wait 107 | 5 100 2 Move 1101 | 72 649 380 Hop . | . . . Pick Up 27 | 6 19 2 Fast Attach 8 | 4 2 2 Attach 5 | 2 2 1 Detach . | . . . Swap 12 | . 10 2 Drop 15 | . 11 4 Fire 80 | 4 54 22 Melee . | . . . Ram . | . . . Kick . | . . . Crush 1 | . 1 . Escape Stasis . | . . . Rewire . | . . . Trap . | . . . Miscellaneous . | . . . Route ------- -11/Scrapyard -10/Materials (discovered 5 exits: [*Mat x2] / [*Min x2] / *Sub) -10/Subcaves History --------- Turn | Location | Event 3 | -11/Scrapyard | Discovered new exit (range 15) 110 | -11/Scrapyard | Entered Materials 169 | -10/Materials | Discovered new exit (range 15) 304 | -10/Materials | Build established: Mutant 463 | -10/Materials | Discovered new exit (range 12) 624 | -10/Materials | Discovered new exit (range 16) 814 | -10/Materials | Discovered new exit (range 8) 869 | -10/Materials | Central database locked down 1066 | -10/Materials | Repaired Seismic Detector 1144 | -10/Materials | Discovered new exit (range 7) 1303 | -10/Materials | Entered Subcaves 1477 | -10/Subcaves | Disturbed a concealed Subdweller 1667 | -10/Subcaves | Visited Clippyterm 1672 | -10/Subcaves | Learned location of Section 7 (-2) 1672 | -10/Subcaves | Learned Research security intel 1713 | -10/Subcaves | Core integrity fell below 50% 1952 | -10/Subcaves | Visited 4L-MR0's lab 1962 | -10/Subcaves | Core integrity fell below 20% 1973 | -10/Subcaves | Destroyed by ZF-XA6(R) with Subdweller Laser Last Messages --------------- 01943_ Found Riot Gun. 01943_ Found Battle Rifle. 01943_ Found 64 Matter. 01944_ Acquired 64 matter. 01945_ Searching scrap... 01945_ Found Piercing Trap. 01945_ Found 47 Matter. 01946_ Acquired 19 matter. 01953_ CH-CAT(R) knocked back. 01953_ Machine disabled. 01954_ 4L-MR0's Prototype Logs disabled. 01956_ CH-CAT(R) destroyed. 01956_ Testing Chamber breached. 01962_ ZF-XA6(R) knocked back. 01963_ Critical hit (Destroy). 01963_ Spk. Treads destroyed. 01964_ ZF-XA6(R) Disposable Heat Sink blasted off. 01964_ ZF-XA6(R) knocked back. 01971_ Destroyed Scrap Shield. Map ----- +----------------------------------------------------+ | ???????????????????????????????? | | ???????????????????????????????? | | ???????????????????????????????? | | ?????????????????? ??????????? | | ?????????????????# ????????? | | ????????????????? ???????? | | ????????????????? ???????? | | ????????????????? ???#????? | | ????????????????? ?? ##??? | | ?????????????????# #?? #??? | | ?????????????????# #?? #??? | | ????????????????## ### #??? | | ????????????????# ##?? | | ???????????????## #?? | | ???????????????# ##? | | ???????????????# #? ## | | ???????????????# ### ? | | ??????????????## ## #???? | | ??????????????# #????? | | ??????????????# ######?? | | ??????????????## #### ### | | ???????????????## | | ??????#######?### | | ??????#< <<### | | ??????# < & ### #### && | | ??????#@##%[ "## # ##??# [ | | ??????# ## ## #####???## * | | ?????? !##"[ "# #???????# * | | ??????RR#### ## #??????# | | ????? #?# #" #?????# ### | | ????? #?# #?????# #?# | | ???? #?# #?????# #?## | | ???? %]#?# #"" #????# ??? | | ???## ##" ###" #??? ??? | | ????" ##?# ??# #?? ### ??? | | ???? !???# "??## #?? ??## ??? | | ????##???$"#???# ?? ?????#???? | | ?????????##????# ????????????? | | ???????????????? #???????????? | | ???????????????? #????????????? | | ???????????????? #????????????? | | ???????????????? #????????????? | | ????????????????###????????????? | | ???????????????????????????????? | | ???????????????????????????????? | | ???????????????????????????????? | | ???????????????????????????????? | | ???????????????????????????????? | | ???????????????????????????????? | | ???????????????????????????????? | +----------------------------------------------------+ Best States ------------- Heat Dissipation 25 Energy Generation 10 Energy Capacity 125 Matter Stores 300 Matter Capacity 300 Sight Range 16 Terrain Scan Density 10 Armor Coverage 150 Evasion (%) 55 Recoil Reduction 2 Item Schematics ----------------- None Robot Schematics ------------------ None Fabricated ------------ Nothing Repaired ---------- Seismic Detector | 25% | -10/Materials Alien Tech Used ----------------- None Achievements -------------- None Challenges ------------ None Game ------ Seed SeismicCobblerNullifier Manual? 0 Play Time 00:46:28 Cumulative 286.3 hours Start 2025.06.08 @ 08:35:14 End 2025.06.08 @ 09:24:46 Sessions 1 Manual Loads 0 Difficulty Rogue Special Mode None Game No. 44 Rogue 11 Adventurer 0 Explorer 33 Win Type - Total 5 Types 5/0/0/0/0/0/0/0/0/0 Lore% 28 Gallery% 42 Achievement% 41 Wizard Run 0 Options --------- Layout 1 ASCII 0 Keyboard 0 Movement Mouse Keybinds 0 Fullscreen 1 Font 24/Smallcaps Map View 50x35 Zoom Use 0% Tactical HUD 1 Map Filters NONE Filters NONE Steam 1 RUN: fc8cfd1b-47f7-47ff-82cd-d7a16c06cdaa